[Event "*** Titled Tuesday Blitz"]
[Site "Chess.com"]
[Date "2020.04.28"]
[Round "6"]
[White "SiddharthGMJagadeesh"]
[Black "Chessterra87"]
[Result "0-1"]
[WhiteElo "2470"]
[BlackElo "2322"]
[TimeControl "180+1"]
[EndTime "11:05:15 PDT"]
[Termination "Chessterra87 won by resignation"]

1. e4 {[%clk 0:03:00.9]} 1... c5 {[%clk 0:02:59.7]} 2. Nf3 {[%clk 0:03:00.7]}
2... e6 {[%clk 0:02:58.1]} 3. d4 {[%clk 0:02:59.6]} 3... cxd4 {[%clk 0:02:58.4]}
4. Nxd4 {[%clk 0:03:00.5]} 4... a6 {[%clk 0:02:58.9]} 5. Bd3 {[%clk 0:02:59.7]}
5... Nf6 {[%clk 0:02:57.5]} 6. O-O {[%clk 0:02:57.8]} 6... d6 {[%clk 0:02:57.6]}
7. c4 {[%clk 0:02:55.2]} 7... b6 {[%clk 0:02:54.9]} 8. Nc3 {[%clk 0:02:54.6]}
8... Bb7 {[%clk 0:02:55.3]} 9. Qe2 {[%clk 0:02:54.7]} 9... Nbd7 {[%clk
0:02:54.8]} 10. Rd1 {[%clk 0:02:49.3]} 10... Qc7 {[%clk 0:02:54.1]} 11. f4
{[%clk 0:02:33.3]} 11... g6 {[%clk 0:02:52.2]} 12. Nf3 {[%clk 0:02:30.3]} 12...
Bg7 {[%clk 0:02:31.1]} 13. b3 {[%clk 0:01:56.1]} 13... Ng4 {[%clk 0:01:52.2]}
14. Bd2 {[%clk 0:01:17]} 14... Qc5+ {[%clk 0:01:37.7]} 15. Kf1 {[%clk
0:01:14.6]} 15... O-O {[%clk 0:01:29.1]} 16. Rac1 {[%clk 0:01:08]} 16... Qh5
{[%clk 0:01:03.5]} 17. h3 {[%clk 0:01:02.9]} 17... Ngf6 {[%clk 0:01:00.6]} 18.
Bb1 {[%clk 0:00:37.3]} 18... b5 {[%clk 0:00:59.8]} 19. cxb5 {[%clk 0:00:28.8]}
19... axb5 {[%clk 0:00:59.8]} 20. Qxb5 {[%clk 0:00:28.7]} 20... Ba6 {[%clk
0:00:59.1]} 0-1

[Event "*** Titled Tuesday Blitz"]
[Site "Chess.com"]
[Date "2020.04.28"]
[Round "6"]
[White "levallem"]
[Black "BillCoe"]
[Result "1-0"]
[WhiteElo "2211"]
[BlackElo "2055"]
[TimeControl "180+1"]
[EndTime "11:05:19 PDT"]
[Termination "levallem won by resignation"]

1. d4 {[%clk 0:02:54.4]} 1... f5 {[%clk 0:02:59.1]} 2. c4 {[%clk 0:02:55]} 2...
Nf6 {[%clk 0:02:58.8]} 3. Nc3 {[%clk 0:02:55.6]} 3... e6 {[%clk 0:02:58.8]} 4.
Bg5 {[%clk 0:02:55.1]} 4... Be7 {[%clk 0:02:56.7]} 5. Nf3 {[%clk 0:02:55.2]}
5... O-O {[%clk 0:02:53.8]} 6. g3 {[%clk 0:02:49.9]} 6... d6 {[%clk 0:02:52.1]}
7. Bg2 {[%clk 0:02:49.4]} 7... Qe8 {[%clk 0:02:51.4]} 8. O-O {[%clk 0:02:48.9]}
8... Ne4 {[%clk 0:02:40.6]} 9. Bxe7 {[%clk 0:02:38.4]} 9... Qxe7 {[%clk
0:02:38.1]} 10. Qd3 {[%clk 0:02:33.5]} 10... Nxc3 {[%clk 0:02:27]} 11. Qxc3
{[%clk 0:02:33]} 11... c6 {[%clk 0:02:11.3]} 12. Rfe1 {[%clk 0:02:21.5]} 12...
Nd7 {[%clk 0:02:07.4]} 13. Rac1 {[%clk 0:02:19.8]} 13... e5 {[%clk 0:02:06.7]}
14. dxe5 {[%clk 0:02:17.3]} 14... dxe5 {[%clk 0:02:02.3]} 15. e3 {[%clk
0:02:17.5]} 15... Qf6 {[%clk 0:01:47.9]} 16. Rcd1 {[%clk 0:02:16.8]} 16... Re8
{[%clk 0:01:32.9]} 17. Rd2 {[%clk 0:02:13.5]} 17... Nf8 {[%clk 0:01:31.6]} 18.
Red1 {[%clk 0:02:12.5]} 18... Ng6 {[%clk 0:01:26.2]} 19. Rd6 {[%clk 0:02:10.4]}
19... Re6 {[%clk 0:01:25.3]} 20. Rd8+ {[%clk 0:02:07.5]} 20... Kf7 {[%clk
0:01:18.9]} 21. h4 {[%clk 0:02:02.1]} 21... h6 {[%clk 0:01:09]} 22. Qb4 {[%clk
0:01:27.3]} 22... Re7 {[%clk 0:00:45.5]} 23. R1d6 {[%clk 0:01:15.6]} 23... Re6
{[%clk 0:00:39.2]} 24. h5 {[%clk 0:01:13.8]} 24... Nf8 {[%clk 0:00:36]} 25.
Rxf8+ {[%clk 0:01:12.3]} 25... Kxf8 {[%clk 0:00:31.5]} 26. Rxe6+ {[%clk
0:01:12.4]} 26... Kf7 {[%clk 0:00:30.8]} 27. Rxf6+ {[%clk 0:01:11.6]} 27... Kxf6
{[%clk 0:00:31.7]} 28. Qd6+ {[%clk 0:01:10.9]} 1-0

[Event "*** Titled Tuesday Blitz"]
[Site "Chess.com"]
[Date "2020.04.28"]
[Round "6"]
[White "andy_rekt"]
[Black "otrov-11"]
[Result "0-1"]
[WhiteElo "2198"]
[BlackElo "2372"]
[TimeControl "180+1"]
[EndTime "11:05:21 PDT"]
[Termination "otrov-11 won by resignation"]

1. d4 {[%clk 0:03:00.9]} 1... Nf6 {[%clk 0:02:59.6]} 2. c4 {[%clk 0:02:58.9]}
2... g6 {[%clk 0:02:59.9]} 3. Nc3 {[%clk 0:02:56.5]} 3... Bg7 {[%clk 0:03:00.1]}
4. e4 {[%clk 0:02:53.1]} 4... d6 {[%clk 0:02:58.8]} 5. Nge2 {[%clk 0:02:50.9]}
5... O-O {[%clk 0:02:42.2]} 6. Ng3 {[%clk 0:02:49]} 6... e5 {[%clk 0:02:32.1]}
7. d5 {[%clk 0:02:45.3]} 7... h5 {[%clk 0:02:29.7]} 8. h4 {[%clk 0:02:42.8]}
8... Nh7 {[%clk 0:02:26]} 9. Be2 {[%clk 0:02:39.2]} 9... Nd7 {[%clk 0:02:23.4]}
10. Bxh5 {[%clk 0:02:35.9]} 10... gxh5 {[%clk 0:02:23]} 11. Nxh5 {[%clk
0:02:35.4]} 11... Ndf6 {[%clk 0:02:01.7]} 12. Bg5 {[%clk 0:02:31]} 12... Qe8
{[%clk 0:01:51.7]} 13. Nxg7 {[%clk 0:02:25.7]} 13... Kxg7 {[%clk 0:01:51.4]} 14.
Qd2 {[%clk 0:02:21.4]} 14... Kh8 {[%clk 0:01:48.2]} 15. O-O-O {[%clk 0:02:12.5]}
15... a6 {[%clk 0:01:47.9]} 16. Rdf1 {[%clk 0:02:09.9]} 16... b5 {[%clk
0:01:47.5]} 17. f4 {[%clk 0:02:07.7]} 17... Ng4 {[%clk 0:01:46]} 18. fxe5 {[%clk
0:02:02.1]} 18... dxe5 {[%clk 0:01:42]} 19. d6 {[%clk 0:01:27.1]} 19... cxd6
{[%clk 0:01:37.8]} 20. Qxd6 {[%clk 0:01:28]} 20... Be6 {[%clk 0:01:37.9]} 21. c5
{[%clk 0:01:16.2]} 21... f6 {[%clk 0:01:32.5]} 22. Bd2 {[%clk 0:01:11]} 22...
Qd7 {[%clk 0:01:31.8]} 23. Nd5 {[%clk 0:00:57.1]} 23... Qxd6 {[%clk 0:01:28.8]}
24. cxd6 {[%clk 0:00:46.3]} 24... Bxd5 {[%clk 0:01:22.9]} 25. exd5 {[%clk
0:00:47.2]} 25... Rfd8 {[%clk 0:01:22.7]} 26. Bb4 {[%clk 0:00:42.7]} 26... a5
{[%clk 0:01:21.8]} 0-1

[Event "*** Titled Tuesday Blitz"]
[Site "Chess.com"]
[Date "2020.04.28"]
[Round "6"]
[White "temus_galaktionov"]
[Black "Anton_Demchenko"]
[Result "1-0"]
[WhiteElo "2780"]
[BlackElo "2851"]
[TimeControl "180+1"]
[EndTime "11:05:26 PDT"]
[Termination "temus_galaktionov won by resignation"]

1. d4 {[%clk 0:03:00.9]} 1... Nf6 {[%clk 0:02:59.9]} 2. Nf3 {[%clk 0:03:00.3]}
2... d6 {[%clk 0:03:00.4]} 3. c4 {[%clk 0:02:59.2]} 3... Nc6 {[%clk 0:03:00.6]}
4. Nc3 {[%clk 0:02:58.7]} 4... e5 {[%clk 0:03:00.8]} 5. e4 {[%clk 0:02:58.2]}
5... Bg4 {[%clk 0:03:00]} 6. d5 {[%clk 0:02:57.2]} 6... Nd4 {[%clk 0:03:00.1]}
7. Be2 {[%clk 0:02:56.9]} 7... Nxe2 {[%clk 0:02:54.3]} 8. Qxe2 {[%clk
0:02:57.8]} 8... Be7 {[%clk 0:02:54]} 9. h3 {[%clk 0:02:57.6]} 9... Bd7 {[%clk
0:02:50.4]} 10. O-O {[%clk 0:02:56]} 10... O-O {[%clk 0:02:50.4]} 11. Ne1 {[%clk
0:02:53.9]} 11... Ne8 {[%clk 0:02:21.5]} 12. f4 {[%clk 0:02:53.4]} 12... exf4
{[%clk 0:02:20.8]} 13. Bxf4 {[%clk 0:02:54.3]} 13... Bf6 {[%clk 0:02:16.4]} 14.
e5 {[%clk 0:02:54.1]} 14... dxe5 {[%clk 0:02:11.3]} 15. Bxe5 {[%clk 0:02:55]}
15... Bxe5 {[%clk 0:02:08.9]} 16. Qxe5 {[%clk 0:02:54.1]} 16... Nd6 {[%clk
0:01:40.2]} 17. c5 {[%clk 0:02:53.2]} 17... f6 {[%clk 0:01:29.7]} 18. Qf4 {[%clk
0:02:46.2]} 18... Nf7 {[%clk 0:01:28.8]} 19. Nd3 {[%clk 0:02:41.5]} 19... Re8
{[%clk 0:01:18.1]} 20. Rae1 {[%clk 0:02:39.7]} 20... a6 {[%clk 0:01:04.9]} 21.
Rxe8+ {[%clk 0:02:37.7]} 21... Bxe8 {[%clk 0:01:05.8]} 22. Re1 {[%clk 0:02:36]}
22... Bb5 {[%clk 0:01:05.2]} 23. Nxb5 {[%clk 0:01:58.3]} 23... axb5 {[%clk
0:01:05.2]} 24. Qe4 {[%clk 0:01:58.4]} 24... Ng5 {[%clk 0:00:54.3]} 25. Qd4
{[%clk 0:01:55.6]} 25... Ra4 {[%clk 0:00:47.6]} 26. b4 {[%clk 0:01:53.6]} 26...
Rxa2 {[%clk 0:00:48]} 27. d6 {[%clk 0:01:53.6]} 27... Ra8 {[%clk 0:00:17.7]} 28.
d7 {[%clk 0:01:53.7]} 28... Qf8 {[%clk 0:00:13.4]} 29. Qd5+ {[%clk 0:01:49]}
29... Nf7 {[%clk 0:00:13]} 30. Qxb7 {[%clk 0:01:48.5]} 30... Rd8 {[%clk
0:00:08.7]} 31. Qc6 {[%clk 0:01:47.9]} 31... Ne5 {[%clk 0:00:03.3]} 32. Nxe5
{[%clk 0:01:47.6]} 32... fxe5 {[%clk 0:00:04.2]} 33. Rxe5 {[%clk 0:01:47.1]}
33... Kf7 {[%clk 0:00:02.1]} 1-0

[Event "*** Titled Tuesday Blitz"]
[Site "Chess.com"]
[Date "2020.04.28"]
[Round "6"]
[White "dcann0n88"]
[Black "Chess_Boxer123"]
[Result "0-1"]
[WhiteElo "2397"]
[BlackElo "2570"]
[TimeControl "180+1"]
[EndTime "11:05:26 PDT"]
[Termination "Chess_Boxer123 won by resignation"]

1. e4 {[%clk 0:03:00.9]} 1... c5 {[%clk 0:02:58.6]} 2. Nf3 {[%clk 0:02:58.4]}
2... Nc6 {[%clk 0:02:58.5]} 3. d4 {[%clk 0:02:54.2]} 3... cxd4 {[%clk
0:02:59.4]} 4. Nxd4 {[%clk 0:02:54.7]} 4... Nf6 {[%clk 0:02:59.6]} 5. Nc3 {[%clk
0:02:54.2]} 5... e5 {[%clk 0:02:59.2]} 6. Ndb5 {[%clk 0:02:54.5]} 6... d6 {[%clk
0:02:59]} 7. Bg5 {[%clk 0:02:54.7]} 7... a6 {[%clk 0:02:59.2]} 8. Na3 {[%clk
0:02:54.9]} 8... b5 {[%clk 0:02:59.3]} 9. Nd5 {[%clk 0:02:55.5]} 9... Be7 {[%clk
0:02:59.5]} 10. Bxf6 {[%clk 0:02:55.9]} 10... Bxf6 {[%clk 0:03:00.4]} 11. c3
{[%clk 0:02:56.5]} 11... O-O {[%clk 0:03:00.3]} 12. Nc2 {[%clk 0:02:57.1]} 12...
Rb8 {[%clk 0:03:00.8]} 13. h4 {[%clk 0:02:56.1]} 13... g6 {[%clk 0:03:00.4]} 14.
Nxf6+ {[%clk 0:02:53.7]} 14... Qxf6 {[%clk 0:03:00.2]} 15. Ne3 {[%clk
0:02:54.2]} 15... Ne7 {[%clk 0:02:51.1]} 16. Qd2 {[%clk 0:02:38.1]} 16... h5
{[%clk 0:02:39.4]} 17. a4 {[%clk 0:02:28.6]} 17... Bb7 {[%clk 0:02:32.4]} 18.
axb5 {[%clk 0:02:20]} 18... axb5 {[%clk 0:02:33.3]} 19. f3 {[%clk 0:02:14]}
19... Rfd8 {[%clk 0:02:29.4]} 20. Bxb5 {[%clk 0:01:44.6]} 20... d5 {[%clk
0:02:26.9]} 21. Rd1 {[%clk 0:01:24.4]} 21... Kg7 {[%clk 0:01:53.2]} 22. exd5
{[%clk 0:01:17.3]} 22... Nxd5 {[%clk 0:01:52.3]} 23. Nxd5 {[%clk 0:01:15.5]}
23... Bxd5 {[%clk 0:01:53]} 24. Bd3 {[%clk 0:01:13]} 24... e4 {[%clk 0:01:35.5]}
25. O-O {[%clk 0:00:29.9]} 25... exd3 {[%clk 0:01:27.9]} 26. Qxd3 {[%clk
0:00:23.4]} 26... Bb3 {[%clk 0:01:15.5]} 0-1

[Event "*** Titled Tuesday Blitz"]
[Site "Chess.com"]
[Date "2020.04.28"]
[Round "6"]
[White "isla88"]
[Black "MisiekZielony"]
[Result "1-0"]
[WhiteElo "2317"]
[BlackElo "2114"]
[TimeControl "180+1"]
[EndTime "11:05:27 PDT"]
[Termination "isla88 won on time"]

1. d4 {[%clk 0:03:00.9]} 1... d5 {[%clk 0:02:59.3]} 2. Nc3 {[%clk 0:03:00.3]}
2... c6 {[%clk 0:02:58]} 3. Bf4 {[%clk 0:02:59.9]} 3... Nf6 {[%clk 0:02:56.7]}
4. e3 {[%clk 0:02:59.3]} 4... g6 {[%clk 0:02:56]} 5. h4 {[%clk 0:02:57.3]} 5...
Bg7 {[%clk 0:02:54.7]} 6. h5 {[%clk 0:02:54.5]} 6... Nxh5 {[%clk 0:02:53.6]} 7.
Rxh5 {[%clk 0:02:54.5]} 7... gxh5 {[%clk 0:02:53.3]} 8. Qxh5 {[%clk 0:02:55.4]}
8... Nd7 {[%clk 0:02:45.1]} 9. Qh2 {[%clk 0:02:54.3]} 9... e5 {[%clk 0:01:49.6]}
10. dxe5 {[%clk 0:02:51.8]} 10... Qe7 {[%clk 0:01:49]} 11. Nf3 {[%clk
0:02:48.8]} 11... Nc5 {[%clk 0:01:45.1]} 12. O-O-O {[%clk 0:02:41.1]} 12... Bg4
{[%clk 0:01:36.2]} 13. Be2 {[%clk 0:02:32.7]} 13... Ne6 {[%clk 0:01:05.4]} 14.
Bg3 {[%clk 0:02:24.9]} 14... h6 {[%clk 0:00:53.7]} 15. Bh4 {[%clk 0:02:24.8]}
15... Qb4 {[%clk 0:00:51.2]} 16. a3 {[%clk 0:02:22.6]} 16... Qa5 {[%clk
0:00:49.6]} 17. Qg3 {[%clk 0:02:11.2]} 17... h5 {[%clk 0:00:46.2]} 18. Nd4
{[%clk 0:02:10.2]} 18... Bf8 {[%clk 0:00:21.7]} 19. Bxg4 {[%clk 0:02:05.1]}
19... hxg4 {[%clk 0:00:21.3]} 20. Nxe6 {[%clk 0:02:02.2]} 20... fxe6 {[%clk
0:00:20.8]} 21. Qxg4 {[%clk 0:02:02.4]} 21... Kd7 {[%clk 0:00:13.3]} 22. e4
{[%clk 0:01:57.1]} 22... Re8 {[%clk 0:00:08.9]} 23. exd5 {[%clk 0:01:56.2]}
23... Kc8 {[%clk 0:00:06.4]} 24. dxe6 {[%clk 0:01:47.5]} 24... Bh6+ {[%clk
0:00:04.7]} 25. Kb1 {[%clk 0:01:43.6]} 25... Qxe5 {[%clk 0:00:03.8]} 26. e7+
{[%clk 0:01:41.2]} 1-0

[Event "*** Titled Tuesday Blitz"]
[Site "Chess.com"]
[Date "2020.04.28"]
[Round "6"]
[White "Yuri202062"]
[Black "CalinGheorghiu"]
[Result "1-0"]
[WhiteElo "2554"]
[BlackElo "2335"]
[TimeControl "180+1"]
[EndTime "11:05:28 PDT"]
[Termination "Yuri202062 won by checkmate"]

1. d4 {[%clk 0:03:00.9]} 1... Nf6 {[%clk 0:02:59.1]} 2. c4 {[%clk 0:03:00.6]}
2... e6 {[%clk 0:02:58.4]} 3. Nc3 {[%clk 0:03:00.7]} 3... Bb4 {[%clk 0:02:57.7]}
4. e3 {[%clk 0:03:01]} 4... O-O {[%clk 0:02:56.8]} 5. Bd3 {[%clk 0:03:01]} 5...
d5 {[%clk 0:02:55.4]} 6. cxd5 {[%clk 0:03:00.9]} 6... exd5 {[%clk 0:02:54.6]} 7.
Ne2 {[%clk 0:03:01.2]} 7... a6 {[%clk 0:02:36.2]} 8. O-O {[%clk 0:03:00.5]} 8...
Re8 {[%clk 0:02:36.1]} 9. f3 {[%clk 0:02:47.8]} 9... Nbd7 {[%clk 0:02:25.1]} 10.
Bd2 {[%clk 0:02:25.1]} 10... c5 {[%clk 0:02:17.8]} 11. a3 {[%clk 0:02:24.5]}
11... Ba5 {[%clk 0:02:14.9]} 12. Rc1 {[%clk 0:02:15]} 12... Bc7 {[%clk
0:01:46.4]} 13. Bb1 {[%clk 0:02:11.1]} 13... b6 {[%clk 0:01:45.6]} 14. dxc5
{[%clk 0:01:50.1]} 14... bxc5 {[%clk 0:01:42.8]} 15. b4 {[%clk 0:01:50.2]} 15...
cxb4 {[%clk 0:01:30.9]} 16. axb4 {[%clk 0:01:49.9]} 16... Bb6 {[%clk 0:01:31.2]}
17. Nd4 {[%clk 0:01:49.2]} 17... Ne5 {[%clk 0:01:30.7]} 18. Na4 {[%clk
0:01:46.7]} 18... Ba7 {[%clk 0:01:19.3]} 19. Ba2 {[%clk 0:01:40.8]} 19... Bb7
{[%clk 0:00:37]} 20. Nc5 {[%clk 0:01:38.6]} 20... Qb6 {[%clk 0:00:35.1]} 21. Kh1
{[%clk 0:01:35.7]} 21... Rac8 {[%clk 0:00:34.5]} 22. Qa4 {[%clk 0:01:22.2]}
22... Bc6 {[%clk 0:00:27.5]} 23. Nxc6 {[%clk 0:01:14.8]} 23... Rxc6 {[%clk
0:00:26]} 24. Bc3 {[%clk 0:01:10.4]} 24... Nc4 {[%clk 0:00:20.6]} 25. Bxf6
{[%clk 0:01:07.6]} 25... Rxf6 {[%clk 0:00:20.2]} 26. Qxe8# {[%clk 0:01:06.3]}
1-0

[Event "*** Titled Tuesday Blitz"]
[Site "Chess.com"]
[Date "2020.04.28"]
[Round "6"]
[White "Justinz"]
[Black "INLOVEWITHF"]
[Result "1-0"]
[WhiteElo "2264"]
[BlackElo "2523"]
[TimeControl "180+1"]
[EndTime "11:05:28 PDT"]
[Termination "Justinz won by resignation"]

1. e4 {[%clk 0:03:00.9]} 1... e5 {[%clk 0:02:57]} 2. Nf3 {[%clk 0:03:00.9]} 2...
Nc6 {[%clk 0:02:57.5]} 3. Nc3 {[%clk 0:02:59.3]} 3... Nf6 {[%clk 0:02:57.4]} 4.
Bb5 {[%clk 0:02:59.8]} 4... Nd4 {[%clk 0:02:56.8]} 5. Ba4 {[%clk 0:02:57.4]}
5... c6 {[%clk 0:02:50.2]} 6. O-O {[%clk 0:02:56.9]} 6... d6 {[%clk 0:02:43.4]}
7. h3 {[%clk 0:02:39.5]} 7... Be7 {[%clk 0:02:29.6]} 8. d3 {[%clk 0:02:38.8]}
8... b5 {[%clk 0:02:26.4]} 9. Bb3 {[%clk 0:02:38.2]} 9... Nxb3 {[%clk
0:02:26.6]} 10. axb3 {[%clk 0:02:37.5]} 10... O-O {[%clk 0:02:25.3]} 11. d4
{[%clk 0:02:36.7]} 11... Nd7 {[%clk 0:02:22.7]} 12. d5 {[%clk 0:02:31.4]} 12...
Bb7 {[%clk 0:02:18]} 13. dxc6 {[%clk 0:02:30.3]} 13... Bxc6 {[%clk 0:02:18.9]}
14. b4 {[%clk 0:02:29.5]} 14... Nb6 {[%clk 0:02:16.7]} 15. Qd3 {[%clk
0:02:25.8]} 15... Qd7 {[%clk 0:02:04.9]} 16. Rd1 {[%clk 0:02:22]} 16... Rfd8
{[%clk 0:02:03.2]} 17. b3 {[%clk 0:02:09.6]} 17... Qe6 {[%clk 0:02:00.2]} 18.
Be3 {[%clk 0:02:07.8]} 18... h6 {[%clk 0:01:50.2]} 19. Rxa7 {[%clk 0:02:01.1]}
19... Rxa7 {[%clk 0:01:48.9]} 20. Bxb6 {[%clk 0:02:00.8]} 20... Raa8 {[%clk
0:01:07.1]} 21. Bxd8 {[%clk 0:01:58.8]} 21... Rxd8 {[%clk 0:01:08]} 22. Nh2
{[%clk 0:01:47.8]} 22... f5 {[%clk 0:00:53.2]} 23. exf5 {[%clk 0:01:45.4]} 23...
Qf7 {[%clk 0:00:53.7]} 24. Ng4 {[%clk 0:01:42.6]} 24... Bg5 {[%clk 0:00:33.1]}
25. Nd5 {[%clk 0:01:30.7]} 25... Rf8 {[%clk 0:00:27.6]} 26. Nge3 {[%clk
0:01:28.7]} 26... Qb7 {[%clk 0:00:22.6]} 27. c4 {[%clk 0:01:24.2]} 27... bxc4
{[%clk 0:00:19.2]} 28. Qxc4 {[%clk 0:01:23.5]} 28... Re8 {[%clk 0:00:19.8]} 29.
Nf6+ {[%clk 0:01:21.8]} 1-0

[Event "*** Titled Tuesday Blitz"]
[Site "Chess.com"]
[Date "2020.04.28"]
[Round "6"]
[White "stoleriu"]
[Black "lifeissofun"]
[Result "1-0"]
[WhiteElo "2543"]
[BlackElo "2347"]
[TimeControl "180+1"]
[EndTime "11:05:30 PDT"]
[Termination "stoleriu won by resignation"]

1. e4 {[%clk 0:03:00.9]} 1... c5 {[%clk 0:03:00]} 2. Nf3 {[%clk 0:03:00.1]} 2...
d6 {[%clk 0:03:00.6]} 3. Bb5+ {[%clk 0:02:59.7]} 3... Nd7 {[%clk 0:02:59.9]} 4.
d4 {[%clk 0:02:59.6]} 4... cxd4 {[%clk 0:03:00.8]} 5. Qxd4 {[%clk 0:03:00.2]}
5... a6 {[%clk 0:03:01.7]} 6. Bxd7+ {[%clk 0:03:00.5]} 6... Bxd7 {[%clk
0:03:02.1]} 7. O-O {[%clk 0:03:01.2]} 7... Nf6 {[%clk 0:03:01.1]} 8. Bg5 {[%clk
0:03:01.8]} 8... e5 {[%clk 0:02:59.2]} 9. Qd3 {[%clk 0:03:00.8]} 9... Qb6 {[%clk
0:02:58.6]} 10. b3 {[%clk 0:02:56.6]} 10... Be7 {[%clk 0:02:56.2]} 11. Bxf6
{[%clk 0:02:52.5]} 11... Bxf6 {[%clk 0:02:55.2]} 12. c4 {[%clk 0:02:53.3]} 12...
O-O {[%clk 0:02:52.2]} 13. Nc3 {[%clk 0:02:53.8]} 13... Be6 {[%clk 0:02:49.7]}
14. Rfd1 {[%clk 0:02:48.9]} 14... Be7 {[%clk 0:02:49.2]} 15. Ne1 {[%clk
0:02:44.4]} 15... f5 {[%clk 0:02:48.3]} 16. Nc2 {[%clk 0:02:32.2]} 16... fxe4
{[%clk 0:02:43.9]} 17. Nxe4 {[%clk 0:02:33.1]} 17... Rad8 {[%clk 0:02:41.3]} 18.
Ne3 {[%clk 0:02:31.7]} 18... Rf4 {[%clk 0:02:29.5]} 19. Nd5 {[%clk 0:02:25.5]}
19... Bxd5 {[%clk 0:02:27.9]} 20. Qxd5+ {[%clk 0:02:26.4]} 20... Kh8 {[%clk
0:02:26.9]} 21. c5 {[%clk 0:02:23.5]} 21... dxc5 {[%clk 0:02:15.5]} 22. Qxe5
{[%clk 0:02:23.1]} 22... Rf7 {[%clk 0:01:57.8]} 23. Rxd8+ {[%clk 0:02:01]} 23...
Qxd8 {[%clk 0:01:55.2]} 24. Re1 {[%clk 0:02:01.3]} 24... h6 {[%clk 0:01:47.3]}
25. h3 {[%clk 0:01:42.8]} 25... Qf8 {[%clk 0:01:38.1]} 26. Rd1 {[%clk
0:01:38.9]} 26... Rf5 {[%clk 0:01:29.3]} 27. Qg3 {[%clk 0:01:37.5]} 27... b5
{[%clk 0:01:25.1]} 28. Rd7 {[%clk 0:01:35.1]} 28... Qe8 {[%clk 0:01:04.8]} 29.
Rb7 {[%clk 0:01:34.3]} 29... Qf7 {[%clk 0:00:56]} 30. Nd6 {[%clk 0:01:26.8]}
30... Bxd6 {[%clk 0:00:55.4]} 31. Rxf7 {[%clk 0:01:26.2]} 31... Bxg3 {[%clk
0:00:53.3]} 32. Rxf5 {[%clk 0:01:26.5]} 32... Bd6 {[%clk 0:00:52.6]} 33. Rd5
{[%clk 0:01:26.8]} 33... Be7 {[%clk 0:00:52.3]} 34. Re5 {[%clk 0:01:27]} 34...
Bf6 {[%clk 0:00:50.9]} 35. Rxc5 {[%clk 0:01:27.1]} 35... Kh7 {[%clk 0:00:50.1]}
36. Rc6 {[%clk 0:01:24.3]} 36... a5 {[%clk 0:00:50]} 37. Rc5 {[%clk 0:01:24.9]}
37... b4 {[%clk 0:00:50.4]} 38. Rxa5 {[%clk 0:01:25]} 38... Bc3 {[%clk
0:00:50.7]} 39. a4 {[%clk 0:01:22.6]} 39... Kg6 {[%clk 0:00:51.6]} 40. Rb5
{[%clk 0:01:19.2]} 40... Kf6 {[%clk 0:00:51]} 41. a5 {[%clk 0:01:19.7]} 41...
Ke6 {[%clk 0:00:51.3]} 42. a6 {[%clk 0:01:20.2]} 42... Kd6 {[%clk 0:00:51.3]}
1-0

[Event "*** Titled Tuesday Blitz"]
[Site "Chess.com"]
[Date "2020.04.28"]
[Round "6"]
[White "chessuriel"]
[Black "Soltan49"]
[Result "0-1"]
[WhiteElo "2218"]
[BlackElo "2425"]
[TimeControl "180+1"]
[EndTime "11:05:35 PDT"]
[Termination "Soltan49 won by resignation"]

1. e4 {[%clk 0:03:00.9]} 1... c6 {[%clk 0:02:59.6]} 2. Nf3 {[%clk 0:03:00.8]}
2... d5 {[%clk 0:03:00.5]} 3. exd5 {[%clk 0:02:55.9]} 3... cxd5 {[%clk
0:03:00.5]} 4. Ne5 {[%clk 0:02:56.1]} 4... Nf6 {[%clk 0:02:55.5]} 5. d4 {[%clk
0:02:53.4]} 5... g6 {[%clk 0:02:50.4]} 6. Bd3 {[%clk 0:02:50.9]} 6... Bg7 {[%clk
0:02:50.2]} 7. O-O {[%clk 0:02:49.9]} 7... O-O {[%clk 0:02:50.2]} 8. f4 {[%clk
0:02:47.9]} 8... Nc6 {[%clk 0:02:50.2]} 9. c3 {[%clk 0:02:45.5]} 9... Bf5 {[%clk
0:02:48.3]} 10. Be3 {[%clk 0:02:27.7]} 10... Qb6 {[%clk 0:02:37.9]} 11. Bxf5
{[%clk 0:01:55.2]} 11... gxf5 {[%clk 0:02:36.2]} 12. Qe2 {[%clk 0:01:55]} 12...
e6 {[%clk 0:02:31.5]} 13. Na3 {[%clk 0:01:53.7]} 13... a6 {[%clk 0:02:23.8]} 14.
Kh1 {[%clk 0:01:42.5]} 14... Kh8 {[%clk 0:02:22.5]} 15. Rg1 {[%clk 0:01:40.8]}
15... Qc7 {[%clk 0:02:18.1]} 16. Nc2 {[%clk 0:01:37.6]} 16... Rg8 {[%clk
0:02:10.5]} 17. Ne1 {[%clk 0:01:35.8]} 17... Ne4 {[%clk 0:02:02.3]} 18. N1f3
{[%clk 0:01:26.3]} 18... Qe7 {[%clk 0:02:00.3]} 19. Nxc6 {[%clk 0:01:21.2]}
19... bxc6 {[%clk 0:02:01.2]} 20. Ne5 {[%clk 0:01:19.6]} 20... Bxe5 {[%clk
0:01:43.3]} 21. dxe5 {[%clk 0:00:55.2]} 21... Qh4 {[%clk 0:01:39.9]} 22. g4
{[%clk 0:00:50.1]} 22... Rxg4 {[%clk 0:01:28.4]} 23. Rxg4 {[%clk 0:00:49.2]}
23... fxg4 {[%clk 0:01:29.3]} 24. Rg1 {[%clk 0:00:48.2]} 24... Rg8 {[%clk
0:01:28.4]} 25. Qg2 {[%clk 0:00:34.7]} 25... g3 {[%clk 0:01:17.2]} 26. c4 {[%clk
0:00:31.8]} 26... Rg6 {[%clk 0:01:15.8]} 27. h3 {[%clk 0:00:29.8]} 27... Nf2+
{[%clk 0:01:11]} 0-1